[Event "16th EWICC 2015"]
[Site "Kutaisi"]
[Date "2015.06.03"]
[Round "11"]
[White "Zaksaite, Salomeja"]
[Black "Mammadova, Narmin"]
[Result "1-0"]
[ECO "B12"]
[WhiteElo "2203"]
[BlackElo "2117"]
[Annotator "Robot 11"]
[PlyCount "107"]
[EventDate "2015.??.??"]
[EventCountry "GEO"]
[TimeControl "900+10"]

1. e4 {[%emt 0:00:01]} c6 {[%emt 0:00:06]} 2. d4 {[%emt 0:00:03]} d5 {[%emt 0:
00:00]} 3. e5 {[%emt 0:00:01]} Bf5 {[%emt 0:00:02]} 4. Nf3 {[%emt 0:00:02]} e6
{[%emt 0:00:01]} 5. Be2 {[%emt 0:00:02]} h6 {[%emt 0:00:06]} 6. O-O {[%emt 0:
00:10]} Nd7 {[%emt 0:00:07]} 7. Be3 {[%emt 0:00:19]} Ne7 {[%emt 0:00:24]} 8. b3
{[%emt 0:00:07]} Bh7 {[%emt 0:00:04]} 9. c4 {[%emt 0:00:13]} Nf5 {[%emt 0:00:
02]} 10. Nc3 {[%emt 0:00:02]} Be7 {[%emt 0:00:14]} 11. Bc1 {[%emt 0:01:25]} O-O
{[%emt 0:00:06]} 12. Bb2 {[%emt 0:00:09]} Rc8 {[%emt 0:02:12]} 13. Re1 {[%emt
0:00:06]} Nh4 {[%emt 0:00:30]} 14. Nxh4 {[%emt 0:00:16]} Bxh4 {[%emt 0:00:01]}
15. g3 {[%emt 0:00:13]} Be7 {[%emt 0:00:03]} 16. c5 {[%emt 0:02:14]} f6 {[%emt
0:01:03]} 17. exf6 {[%emt 0:00:07]} Rxf6 {[%emt 0:01:04]} 18. Bg4 {[%emt 0:01:
38]} Nf8 {[%emt 0:00:17]} 19. Qe2 {[%emt 0:00:06]} Qd7 {[%emt 0:00:58]} 20. Bc1
{[%emt 0:00:14]} Bd8 {[%emt 0:01:52]} 21. Bd2 {[%emt 0:00:51]} Bc7 {[%emt 0:00:
25]} 22. b4 {[%emt 0:00:21]} Re8 {[%emt 0:00:26]} 23. f4 {[%emt 0:00:13]} Kh8 {
[%emt 0:01:33]} 24. a4 {[%emt 0:00:06]} b6 {[%emt 0:01:38]} 25. Nd1 {[%emt 0:
00:41]} bxc5 {[%emt 0:00:51]} 26. bxc5 {[%emt 0:00:01]} Rb8 {[%emt 0:00:05]}
27. Qe3 {[%emt 0:00:54]} Qf7 {[%emt 0:00:32]} 28. Ra2 {[%emt 0:01:39]} Qg6 {
[%emt 0:00:31]} 29. Nf2 {[%emt 0:00:07]} h5 {[%emt 0:00:01]} 30. Be2 {[%emt 0:
00:34]} Bxf4 {[%emt 0:00:32]} 31. Qc3 {[%emt 0:01:21]} Bxd2 {[%emt 0:00:45]}
32. Rxd2 {[%emt 0:00:02]} Qf5 {[%emt 0:01:19]} 33. Qe3 {[%emt 0:00:28]} Rb3 {
[%emt 0:00:28]} 34. Rd3 {[%emt 0:01:33]} Rb2 {[%emt 0:00:37]} 35. Rf1 {[%emt 0:
00:13]} Qg6 {[%emt 0:00:45]} 36. Rdd1 {[%emt 0:00:16]} Qc2 {[%emt 0:00:44]} 37.
Bxh5 {[%emt 0:00:25]} Be4 {[%emt 0:00:30]} 38. Rc1 {[%emt 0:01:06]} Qd2 {[%emt
0:00:08]} 39. Qxd2 {[%emt 0:00:12]} Rxd2 {[%emt 0:00:01]} 40. Nxe4 {[%emt 0:00:
08]} dxe4 {[%emt 0:00:04]} 41. Be8 {[%emt 0:00:36]} Rxd4 {[%emt 0:00:26]} 42.
Bxc6 {[%emt 0:00:09]} Nd7 {[%emt 0:00:11]} 43. Bxd7 {[%emt 0:00:22]} Rxd7 {
[%emt 0:00:02]} 44. c6 {[%emt 0:00:13]} Rxf1+ {[%emt 0:00:19]} 45. Kxf1 {[%emt
0:00:05]} Rc7 {[%emt 0:00:00]} 46. Ke2 {[%emt 0:00:02]} Kg8 {[%emt 0:00:03]}
47. Ke3 {[%emt 0:00:01]} Kf7 {[%emt 0:00:01]} 48. Kxe4 {[%emt 0:00:01]} Kf6 {
[%emt 0:00:05]} 49. Kd4 {[%emt 0:00:28]} g6 {[%emt 0:00:35]} 50. Kc5 {[%emt 0:
00:10]} Ke7 {[%emt 0:00:03]} 51. Rb1 {[%emt 0:00:12]} e5 {[%emt 0:00:19]} 52.
Rb7 {[%emt 0:00:09]} Kd8 {[%emt 0:00:03]} 53. Kd6 {[%emt 0:00:12]} Rc8 {[%emt
0:00:15]} 54. Rh7 {[%emt 0:00:05]} 1-0

[Event "16th EWICC 2015"]
[Site "Kutaisi"]
[Date "2015.06.03"]
[Round "11"]
[White "Arabidze, Meri"]
[Black "Mammadzada, Gunay"]
[Result "1-0"]
[ECO "D10"]
[WhiteElo "2403"]
[BlackElo "2336"]
[Annotator "Robot 11"]
[PlyCount "71"]
[EventDate "2015.??.??"]
[EventCountry "GEO"]
[TimeControl "900+10"]

1. d4 {[%emt 0:00:01]} d5 {[%emt 0:00:01]} 2. c4 {[%emt 0:00:01]} c6 {[%emt 0:
00:01]} 3. cxd5 {[%emt 0:00:02]} cxd5 {[%emt 0:00:01]} 4. Nc3 {[%emt 0:00:01]}
Nf6 {[%emt 0:00:02]} 5. Nf3 {[%emt 0:00:02]} Nc6 {[%emt 0:00:06]} 6. Bf4 {
[%emt 0:00:01]} a6 {[%emt 0:00:08]} 7. Rc1 {[%emt 0:00:02]} Bf5 {[%emt 0:00:03]
} 8. e3 {[%emt 0:00:01]} Rc8 {[%emt 0:00:03]} 9. Be2 {[%emt 0:00:03]} e6 {
[%emt 0:00:02]} 10. O-O {[%emt 0:00:03]} Nd7 {[%emt 0:00:08]} 11. Na4 {[%emt 0:
00:31]} Be7 {[%emt 0:01:12]} 12. a3 {[%emt 0:00:08]} g5 {[%emt 0:02:02]} 13.
Be5 {[%emt 0:00:35]} Ndxe5 {[%emt 0:00:33]} 14. dxe5 {[%emt 0:00:38]} O-O {
[%emt 0:00:22]} 15. Nd4 {[%emt 0:02:23]} Nxd4 {[%emt 0:00:44]} 16. Qxd4 {[%emt
0:01:10]} Bc2 {[%emt 0:02:33]} 17. Nc3 {[%emt 0:00:15]} Bg6 {[%emt 0:01:05]}
18. Na4 {[%emt 0:01:40]} Bc2 {[%emt 0:00:09]} 19. Bd3 {[%emt 0:00:30]} Bxd3 {
[%emt 0:00:27]} 20. Qxd3 {[%emt 0:00:10]} Rc4 {[%emt 0:00:54]} 21. Nc3 {[%emt
0:00:51]} Qc7 {[%emt 0:00:35]} 22. f4 {[%emt 0:00:33]} Rc8 {[%emt 0:00:55]} 23.
Rb1 {[%emt 0:02:54]} Rd8 {[%emt 0:04:15]} 24. Ne2 {[%emt 0:00:53]} Bf8 {[%emt
0:01:41]} 25. Kh1 {[%emt 0:00:30]} Rc8 {[%emt 0:00:09]} 26. Ng3 {[%emt 0:00:34]
} Bg7 {[%emt 0:00:16]} 27. Nh5 {[%emt 0:02:14]} Re4 {[%emt 0:00:18]} 28. Qd1 {
[%emt 0:01:05]} Qc2 {[%emt 0:00:19]} 29. Qg4 {[%emt 0:00:17]} Rxe3 {[%emt 0:00:
01]} 30. f5 {[%emt 0:00:42]} h6 {[%emt 0:00:20]} 31. fxe6 {[%emt 0:00:05]} Rf8
{[%emt 0:00:29]} 32. exf7+ {[%emt 0:00:15]} Rxf7 {[%emt 0:00:01]} 33. Qe6 {
[%emt 0:00:18]} Qc7 {[%emt 0:00:07]} 34. Qe8+ {[%emt 0:00:55]} Bf8 {[%emt 0:00:
03]} 35. Nf6+ {[%emt 0:00:04]} Kg7 {[%emt 0:00:21]} 36. Nxd5 {[%emt 0:00:04]}
1-0

[Event "16th EWICC 2015"]
[Site "Kutaisi"]
[Date "2015.06.03"]
[Round "11"]
[White "Gaponenko, Inna"]
[Black "Sviridova, Vlada"]
[Result "1-0"]
[ECO "C01"]
[WhiteElo "2391"]
[BlackElo "2087"]
[Annotator "Robot 11"]
[PlyCount "113"]
[EventDate "2015.??.??"]
[EventCountry "GEO"]
[TimeControl "900+10"]

1. e4 {[%emt 0:00:01]} e6 {[%emt 0:00:00]} 2. d4 {[%emt 0:00:01]} d5 {[%emt 0:
00:01]} 3. exd5 {[%emt 0:00:01]} exd5 {[%emt 0:00:01]} 4. Nf3 {[%emt 0:00:02]}
Bd6 {[%emt 0:00:01]} 5. c4 {[%emt 0:00:00]} dxc4 {[%emt 0:00:30]} 6. Bxc4 {
[%emt 0:00:02]} Nf6 {[%emt 0:00:02]} 7. O-O {[%emt 0:00:03]} O-O {[%emt 0:00:
01]} 8. Nc3 {[%emt 0:00:04]} Nc6 {[%emt 0:00:32]} 9. h3 {[%emt 0:01:13]} h6 {
[%emt 0:00:43]} 10. Re1 {[%emt 0:02:02]} Bf5 {[%emt 0:01:34]} 11. Ne5 {[%emt 0:
00:30]} Bxe5 {[%emt 0:01:00]} 12. dxe5 {[%emt 0:00:03]} Qxd1 {[%emt 0:00:06]}
13. Nxd1 {[%emt 0:00:02]} Nd7 {[%emt 0:00:12]} 14. f4 {[%emt 0:00:17]} Nb6 {
[%emt 0:00:31]} 15. Bf1 {[%emt 0:00:19]} Nd4 {[%emt 0:01:16]} 16. Ne3 {[%emt 0:
00:03]} Bh7 {[%emt 0:02:11]} 17. b3 {[%emt 0:01:24]} f6 {[%emt 0:00:11]} 18.
Ba3 {[%emt 0:00:37]} Rfe8 {[%emt 0:00:57]} 19. Rad1 {[%emt 0:01:58]} fxe5 {
[%emt 0:00:06]} 20. fxe5 {[%emt 0:00:01]} Rad8 {[%emt 0:00:12]} 21. Bc5 {[%emt
0:00:43]} Ne6 {[%emt 0:00:55]} 22. Rxd8 {[%emt 0:00:53]} Nxd8 {[%emt 0:00:33]}
23. Bxb6 {[%emt 0:00:36]} axb6 {[%emt 0:00:01]} 24. Bc4+ {[%emt 0:00:03]} Kh8 {
[%emt 0:00:22]} 25. Rd1 {[%emt 0:02:32]} Be4 {[%emt 0:00:44]} 26. Rd7 {[%emt 0:
00:55]} Nc6 {[%emt 0:01:48]} 27. Rxc7 {[%emt 0:00:02]} Nxe5 {[%emt 0:00:05]}
28. Bd5 {[%emt 0:00:38]} Bxd5 {[%emt 0:01:05]} 29. Nxd5 {[%emt 0:00:01]} Nd3 {
[%emt 0:00:01]} 30. Rxb7 {[%emt 0:00:44]} Re1+ {[%emt 0:00:13]} 31. Kh2 {[%emt
0:00:02]} Re2 {[%emt 0:00:02]} 32. a4 {[%emt 0:00:22]} Ne1 {[%emt 0:00:11]} 33.
Nf4 {[%emt 0:00:12]} Rb2 {[%emt 0:00:25]} 34. Rxb6 {[%emt 0:00:06]} g5 {[%emt
0:00:05]} 35. Rxh6+ {[%emt 0:01:38]} Kg7 {[%emt 0:00:04]} 36. Re6 {[%emt 0:00:
01]} Nf3+ {[%emt 0:00:28]} 37. Kg3 {[%emt 0:00:01]} Nd4 {[%emt 0:00:03]} 38.
Rg6+ {[%emt 0:00:33]} Kf7 {[%emt 0:00:19]} 39. Rxg5 {[%emt 0:00:02]} Rxb3+ {
[%emt 0:00:09]} 40. Kg4 {[%emt 0:00:29]} Rb4 {[%emt 0:00:27]} 41. a5 {[%emt 0:
00:05]} Ra4 {[%emt 0:00:41]} 42. h4 {[%emt 0:00:19]} Ne6 {[%emt 0:00:32]} 43.
Rf5+ {[%emt 0:00:08]} Kg7 {[%emt 0:00:11]} 44. g3 {[%emt 0:00:10]} Nd4 {[%emt
0:00:52]} 45. Rc5 {[%emt 0:00:52]} Nb3 {[%emt 0:00:24]} 46. Rc7+ {[%emt 0:00:
01]} Kh6 {[%emt 0:00:02]} 47. Rc6+ {[%emt 0:00:06]} Kh7 {[%emt 0:00:04]} 48. a6
{[%emt 0:00:01]} Nd4 {[%emt 0:00:11]} 49. Rb6 {[%emt 0:00:08]} Nc2 {[%emt 0:00:
15]} 50. Kg5 {[%emt 0:00:35]} Ra5+ {[%emt 0:00:13]} 51. Kf6 {[%emt 0:00:02]}
Ne3 {[%emt 0:00:05]} 52. Ke6 {[%emt 0:00:27]} Nf5 {[%emt 0:00:15]} 53. Kd7 {
[%emt 0:00:40]} Nxg3 {[%emt 0:00:18]} 54. Kc7 {[%emt 0:00:11]} Ne4 {[%emt 0:00:
11]} 55. Ne6 {[%emt 0:00:03]} Nc3 {[%emt 0:00:14]} 56. Kb7 {[%emt 0:00:16]} Nd5
{[%emt 0:00:25]} 57. Rb3 {[%emt 0:00:29]} 1-0

[Event "16th EWICC 2015"]
[Site "Kutaisi"]
[Date "2015.06.03"]
[Round "11"]
[White "Gaprindashvili, Nona"]
[Black "Vakhania, Alexandra"]
[Result "1-0"]
[ECO "D11"]
[WhiteElo "2302"]
[BlackElo "2130"]
[Annotator "Robot 11"]
[PlyCount "69"]
[EventDate "2015.??.??"]
[EventCountry "GEO"]
[TimeControl "900+10"]

1. d4 {[%emt 0:00:01]} d5 {[%emt 0:00:04]} 2. c4 {[%emt 0:00:01]} c6 {[%emt 0:
00:02]} 3. Nf3 {[%emt 0:00:02]} Nf6 {[%emt 0:00:01]} 4. Qb3 {[%emt 0:00:03]} g6
{[%emt 0:00:20]} 5. Nc3 {[%emt 0:00:18]} Bg7 {[%emt 0:00:02]} 6. cxd5 {[%emt 0:
00:02]} cxd5 {[%emt 0:00:05]} 7. Bg5 {[%emt 0:00:14]} e6 {[%emt 0:00:51]} 8. e3
{[%emt 0:00:15]} O-O {[%emt 0:00:05]} 9. Bd3 {[%emt 0:00:24]} h6 {[%emt 0:00:
05]} 10. Bf4 {[%emt 0:00:20]} Nc6 {[%emt 0:00:02]} 11. O-O Re8 12. h3 {[%emt 0:
00:19]} a6 {[%emt 0:00:42]} 13. Na4 {[%emt 0:00:22]} b5 {[%emt 0:00:16]} 14.
Nc5 {[%emt 0:00:02]} Nd7 {[%emt 0:00:01]} 15. Rfc1 {[%emt 0:01:14]} Na5 {[%emt
0:01:37]} 16. Qc3 {[%emt 0:01:12]} Nc4 {[%emt 0:01:06]} 17. Nxd7 {[%emt 0:02:
37]} Qxd7 {[%emt 0:02:16]} 18. b3 {[%emt 0:00:05]} Nd6 {[%emt 0:02:17]} 19. Ne5
{[%emt 0:01:14]} Qd8 {[%emt 0:02:37]} 20. Qc7 {[%emt 0:02:09]} Bf8 {[%emt 0:00:
02]} 21. a4 {[%emt 0:04:08]} Qxc7 {[%emt 0:01:16]} 22. Rxc7 {[%emt 0:00:04]}
bxa4 {[%emt 0:00:02]} 23. bxa4 {[%emt 0:00:34]} g5 {[%emt 0:00:30]} 24. Bg3 {
[%emt 0:00:07]} Rb8 {[%emt 0:00:37]} 25. Ng4 {[%emt 0:00:26]} Rd8 {[%emt 0:00:
48]} 26. Nf6+ {[%emt 0:00:53]} Kg7 {[%emt 0:00:05]} 27. Be5 {[%emt 0:00:04]}
Rb7 {[%emt 0:00:50]} 28. Rc6 {[%emt 0:00:26]} Nf5 {[%emt 0:02:21]} 29. Rac1 {
[%emt 0:00:56]} Ne7 {[%emt 0:00:28]} 30. Nxd5+ {[%emt 0:00:04]} Kg8 {[%emt 0:
00:00]} 31. Nxe7+ {[%emt 0:00:03]} Bxe7 {[%emt 0:00:09]} 32. Rxc8 {[%emt 0:00:
02]} f6 {[%emt 0:00:06]} 33. Rxd8+ {[%emt 0:00:12]} Bxd8 {[%emt 0:00:02]} 34.
Rc8 {[%emt 0:00:04]} Rd7 {[%emt 0:00:07]} 35. Bxf6 1-0

[Event "16th EWICC 2015"]
[Site "Kutaisi"]
[Date "2015.06.03"]
[Round "11"]
[White "Javakhishvili, Lela"]
[Black "Gvetadze, Sofio"]
[Result "1-0"]
[ECO "D32"]
[WhiteElo "2472"]
[BlackElo "2319"]
[Annotator "Robot 11"]
[PlyCount "95"]
[EventDate "2015.??.??"]
[EventCountry "GEO"]
[TimeControl "900+10"]

1. d4 {[%emt 0:00:01]} d5 {[%emt 0:00:01]} 2. c4 {[%emt 0:00:03]} e6 {[%emt 0:
00:01]} 3. Nc3 {[%emt 0:00:04]} c5 {[%emt 0:00:02]} 4. cxd5 {[%emt 0:00:07]}
exd5 {[%emt 0:00:01]} 5. Nf3 {[%emt 0:00:04]} Nc6 {[%emt 0:00:19]} 6. dxc5 {
[%emt 0:00:04]} d4 {[%emt 0:00:05]} 7. Na4 {[%emt 0:00:02]} Bxc5 {[%emt 0:00:
15]} 8. Nxc5 {[%emt 0:00:03]} Qa5+ {[%emt 0:00:01]} 9. Bd2 {[%emt 0:00:02]}
Qxc5 {[%emt 0:00:01]} 10. Rc1 {[%emt 0:00:44]} Qb6 {[%emt 0:00:22]} 11. e3 {
[%emt 0:00:03]} Nf6 {[%emt 0:03:21]} 12. Nxd4 {[%emt 0:03:00]} Nxd4 {[%emt 0:
00:21]} 13. exd4 {[%emt 0:00:02]} Qxd4 {[%emt 0:00:27]} 14. Bb5+ {[%emt 0:01:
05]} Bd7 {[%emt 0:00:07]} 15. Qe2+ {[%emt 0:00:47]} Kf8 {[%emt 0:02:11]} 16.
Bxd7 {[%emt 0:00:22]} Qxd7 {[%emt 0:00:18]} 17. O-O {[%emt 0:00:19]} Re8 {
[%emt 0:00:20]} 18. Be3 {[%emt 0:01:20]} Kg8 {[%emt 0:00:14]} 19. Rfd1 {[%emt
0:00:12]} Qf5 {[%emt 0:00:40]} 20. Qd3 {[%emt 0:00:23]} Qa5 {[%emt 0:00:04]}
21. Qb3 {[%emt 0:00:14]} b5 {[%emt 0:02:35]} 22. Rc5 {[%emt 0:00:47]} a6 {
[%emt 0:00:12]} 23. h3 {[%emt 0:00:15]} h6 {[%emt 0:00:15]} 24. Rc6 {[%emt 0:
00:10]} b4 {[%emt 0:01:34]} 25. Bd4 {[%emt 0:02:36]} Qf5 {[%emt 0:00:33]} 26.
Rxa6 {[%emt 0:00:28]} Ne4 {[%emt 0:00:32]} 27. Ra7 {[%emt 0:01:06]} Re6 {[%emt
0:00:39]} 28. Qxb4 {[%emt 0:01:03]} Kh7 {[%emt 0:00:14]} 29. Ra5 {[%emt 0:00:
04]} Qg6 {[%emt 0:00:07]} 30. Be3 {[%emt 0:00:18]} Rhe8 {[%emt 0:00:25]} 31.
Qc4 {[%emt 0:00:20]} f5 {[%emt 0:00:25]} 32. Qd3 {[%emt 0:00:39]} Qf6 {[%emt 0:
01:23]} 33. Bd4 {[%emt 0:00:02]} Qh4 {[%emt 0:00:04]} 34. Ra7 {[%emt 0:00:06]}
Rg6 {[%emt 0:00:03]} 35. Qf3 {[%emt 0:00:41]} Rf8 {[%emt 0:00:25]} 36. Be3 {
[%emt 0:00:17]} Rff6 {[%emt 0:00:40]} 37. Rdd7 {[%emt 0:00:20]} Ng5 {[%emt 0:
00:32]} 38. Bxg5 {[%emt 0:00:03]} Rxg5 {[%emt 0:00:02]} 39. Kh2 {[%emt 0:01:34]
} Qb4 {[%emt 0:00:28]} 40. Rab7 {[%emt 0:00:08]} Qa4 {[%emt 0:00:13]} 41. a3 {
[%emt 0:00:09]} Rfg6 {[%emt 0:00:05]} 42. g3 {[%emt 0:00:09]} f4 {[%emt 0:00:
05]} 43. g4 {[%emt 0:00:09]} h5 {[%emt 0:00:20]} 44. Qd3 {[%emt 0:00:31]} Kh6 {
[%emt 0:00:22]} 45. Rd8 {[%emt 0:00:07]} Re5 {[%emt 0:00:43]} 46. Rh8+ {[%emt
0:00:06]} Kg5 {[%emt 0:00:02]} 47. Rxh5+ {[%emt 0:00:05]} Kf6 {[%emt 0:00:01]}
48. Rb6+ {[%emt 0:00:09]} 1-0

[Event "16th EWICC 2015"]
[Site "Kutaisi"]
[Date "2015.06.03"]
[Round "11"]
[White "Mammadova, Gulnar"]
[Black "Nikoladze, Sopio"]
[Result "1-0"]
[ECO "C41"]
[WhiteElo "2293"]
[BlackElo "2155"]
[Annotator "Robot 11"]
[PlyCount "131"]
[EventDate "2015.??.??"]
[EventCountry "GEO"]
[TimeControl "900+10"]

1. e4 {[%emt 0:00:02]} e5 {[%emt 0:00:01]} 2. Nf3 {[%emt 0:00:01]} d6 {[%emt 0:
00:01]} 3. d4 {[%emt 0:00:04]} exd4 {[%emt 0:00:02]} 4. Nxd4 {[%emt 0:00:02]}
Nf6 {[%emt 0:00:00]} 5. Nc3 {[%emt 0:00:02]} Be7 {[%emt 0:00:02]} 6. Bc4 {
[%emt 0:00:06]} O-O {[%emt 0:00:03]} 7. O-O {[%emt 0:00:05]} Nxe4 {[%emt 0:00:
12]} 8. Nxe4 {[%emt 0:00:27]} d5 {[%emt 0:00:01]} 9. Bd3 {[%emt 0:00:05]} dxe4
{[%emt 0:00:01]} 10. Bxe4 {[%emt 0:00:02]} Bf6 {[%emt 0:00:06]} 11. Nb5 {[%emt
0:00:56]} a6 {[%emt 0:00:29]} 12. Qxd8 {[%emt 0:00:22]} Bxd8 {[%emt 0:00:01]}
13. Nc3 {[%emt 0:00:02]} Nd7 {[%emt 0:00:08]} 14. Be3 {[%emt 0:00:32]} Nf6 {
[%emt 0:00:38]} 15. Bf3 {[%emt 0:00:29]} c6 {[%emt 0:00:38]} 16. Bc5 {[%emt 0:
01:53]} Re8 {[%emt 0:00:04]} 17. Rfe1 {[%emt 0:00:16]} Rxe1+ {[%emt 0:00:16]}
18. Rxe1 {[%emt 0:00:03]} Bf5 {[%emt 0:00:13]} 19. g4 {[%emt 0:02:04]} Be6 {
[%emt 0:00:23]} 20. h3 {[%emt 0:00:34]} h6 {[%emt 0:00:02]} 21. Rd1 {[%emt 0:
00:41]} Rc8 {[%emt 0:00:56]} 22. Ne2 {[%emt 0:01:11]} b6 {[%emt 0:00:55]} 23.
Bd6 {[%emt 0:00:31]} Bd5 {[%emt 0:00:56]} 24. Bxd5 {[%emt 0:00:09]} Nxd5 {
[%emt 0:00:02]} 25. c4 {[%emt 0:00:15]} Nc7 {[%emt 0:00:12]} 26. Kg2 {[%emt 0:
01:22]} c5 {[%emt 0:00:23]} 27. Be5 {[%emt 0:00:17]} Ne6 {[%emt 0:00:08]} 28.
f4 {[%emt 0:00:19]} Kf8 {[%emt 0:00:38]} 29. f5 {[%emt 0:00:52]} Nc7 {[%emt 0:
00:12]} 30. Kf3 {[%emt 0:00:42]} Ne8 {[%emt 0:00:20]} 31. Nc3 {[%emt 0:00:34]}
Bf6 {[%emt 0:00:41]} 32. Bxf6 {[%emt 0:00:06]} Nxf6 {[%emt 0:00:05]} 33. Rd6 {
[%emt 0:00:05]} Rb8 {[%emt 0:00:06]} 34. Na4 {[%emt 0:01:00]} b5 {[%emt 0:00:
07]} 35. Nxc5 {[%emt 0:00:10]} bxc4 {[%emt 0:00:05]} 36. Rxf6 {[%emt 0:00:24]}
Rc8 {[%emt 0:00:41]} 37. Nd7+ {[%emt 0:00:52]} Ke7 {[%emt 0:00:06]} 38. Nb6 {
[%emt 0:00:05]} Rc5 {[%emt 0:00:22]} 39. Na4 {[%emt 0:01:03]} Ra5 {[%emt 0:00:
09]} 40. Rc6 {[%emt 0:00:23]} Rxa4 {[%emt 0:00:02]} 41. a3 {[%emt 0:00:01]} Kd7
{[%emt 0:00:11]} 42. Rc5 {[%emt 0:00:08]} Kd6 {[%emt 0:00:26]} 43. Rc8 {[%emt
0:00:02]} Kd7 {[%emt 0:00:26]} 44. Rc5 {[%emt 0:00:44]} Kd6 {[%emt 0:00:02]}
45. Rc8 {[%emt 0:00:02]} Kd7 {[%emt 0:00:03]} 46. Rg8 {[%emt 0:00:22]} c3 {
[%emt 0:00:03]} 47. bxc3 {[%emt 0:00:01]} Rxa3 {[%emt 0:00:01]} 48. Rxg7 {
[%emt 0:00:02]} Rxc3+ {[%emt 0:00:03]} 49. Kf4 {[%emt 0:00:22]} Ke7 {[%emt 0:
00:02]} 50. h4 {[%emt 0:00:35]} a5 {[%emt 0:01:55]} 51. Rg8 {[%emt 0:00:14]} a4
{[%emt 0:00:10]} 52. Ra8 {[%emt 0:00:02]} Rc4+ {[%emt 0:00:30]} 53. Ke5 {[%emt
0:00:27]} Rxg4 {[%emt 0:01:31]} 54. Ra7+ {[%emt 0:00:00]} Ke8 {[%emt 0:00:20]}
55. h5 {[%emt 0:00:20]} Rh4 {[%emt 0:00:12]} 56. Kf6 {[%emt 0:00:17]} Rxh5 {
[%emt 0:00:06]} 57. Rxa4 {[%emt 0:00:12]} Rg5 {[%emt 0:00:31]} 58. Ra8+ {[%emt
0:00:08]} Kd7 {[%emt 0:00:03]} 59. Rf8 {[%emt 0:00:05]} Rg1 {[%emt 0:00:08]}
60. Kxf7 {[%emt 0:00:08]} h5 {[%emt 0:00:16]} 61. Rh8 {[%emt 0:00:04]} Ra1 {
[%emt 0:00:37]} 62. f6 {[%emt 0:00:34]} Kd6 {[%emt 0:00:17]} 63. Rxh5 {[%emt 0:
00:36]} Rg1 {[%emt 0:01:10]} 64. Rh2 {[%emt 0:00:13]} Rf1 {[%emt 0:00:05]} 65.
Rd2+ {[%emt 0:00:09]} Ke5 {[%emt 0:00:01]} 66. Ke7 {[%emt 0:00:11]} 1-0

[Event "16th EWICC 2015"]
[Site "Kutaisi"]
[Date "2015.06.03"]
[Round "11"]
[White "Paehtz, Elisabeth"]
[Black "Galliamova, Alisa"]
[Result "1-0"]
[ECO "B47"]
[WhiteElo "2473"]
[BlackElo "2478"]
[Annotator "Robot 11"]
[PlyCount "73"]
[EventDate "2015.??.??"]
[EventCountry "GEO"]
[TimeControl "900+10"]

1. e4 {[%emt 0:00:01]} c5 {[%emt 0:00:02]} 2. Nf3 {[%emt 0:00:01]} e6 {[%emt 0:
00:01]} 3. d4 {[%emt 0:00:01]} cxd4 {[%emt 0:00:01]} 4. Nxd4 {[%emt 0:00:01]}
Nc6 {[%emt 0:00:01]} 5. Nc3 {[%emt 0:00:02]} Qc7 {[%emt 0:00:02]} 6. Nb3 {
[%emt 0:00:17]} Nf6 {[%emt 0:00:17]} 7. Bd3 {[%emt 0:00:02]} a6 {[%emt 0:00:34]
} 8. f4 {[%emt 0:00:03]} b5 {[%emt 0:00:30]} 9. a3 {[%emt 0:00:21]} b4 {[%emt
0:01:06]} 10. axb4 {[%emt 0:00:06]} Nxb4 {[%emt 0:00:07]} 11. e5 {[%emt 0:01:
16]} Nfd5 {[%emt 0:00:06]} 12. Nxd5 {[%emt 0:00:13]} Nxd5 {[%emt 0:00:10]} 13.
O-O {[%emt 0:00:42]} f5 {[%emt 0:00:23]} 14. exf6 {[%emt 0:00:45]} Nxf6 {[%emt
0:00:06]} 15. f5 {[%emt 0:00:26]} e5 {[%emt 0:00:08]} 16. Qe2 {[%emt 0:01:10]}
Be7 {[%emt 0:00:55]} 17. Bc4 {[%emt 0:04:27]} d5 {[%emt 0:00:31]} 18. Bb5+ {
[%emt 0:00:01]} Kf7 {[%emt 0:00:28]} 19. Bg5 {[%emt 0:00:31]} Rd8 {[%emt 0:01:
02]} 20. Kh1 {[%emt 0:00:48]} a5 {[%emt 0:02:34]} 21. Ra4 {[%emt 0:00:25]} h6 {
[%emt 0:01:49]} 22. Bh4 {[%emt 0:00:14]} Bd7 {[%emt 0:00:50]} 23. Bxd7 {[%emt
0:00:16]} Rxd7 {[%emt 0:00:10]} 24. Rfa1 {[%emt 0:00:53]} e4 {[%emt 0:00:54]}
25. Nd4 {[%emt 0:00:18]} Qf4 {[%emt 0:01:19]} 26. Bg3 {[%emt 0:00:31]} Qg5 {
[%emt 0:00:01]} 27. Rf1 {[%emt 0:00:44]} Nh5 {[%emt 0:00:05]} 28. Be5 {[%emt 0:
00:21]} Nf6 {[%emt 0:00:32]} 29. Qb5 {[%emt 0:00:56]} Rad8 {[%emt 0:00:51]} 30.
Ne6 {[%emt 0:00:49]} Qd2 {[%emt 0:00:06]} 31. Nxd8+ {[%emt 0:01:14]} Rxd8 {
[%emt 0:00:02]} 32. Qc6 {[%emt 0:00:24]} e3 {[%emt 0:00:45]} 33. Raa1 {[%emt 0:
00:01]} e2 {[%emt 0:00:30]} 34. Rfe1 {[%emt 0:00:03]} Ne4 {[%emt 0:00:38]} 35.
Qg6+ {[%emt 0:00:07]} Kf8 {[%emt 0:00:17]} 36. Bxg7+ {[%emt 0:00:02]} Kg8 {
[%emt 0:00:01]} 37. Bxh6+ {[%emt 0:00:02]} 1-0